[Event "Romanian Team Blitz Women 2022"]
[Site "Sebes"]
[Date "2022.12.04"]
[Round "6.3"]
[White "Bucur, Denisa-Andreea"]
[Black "Schiopu, Andreea-Alexandra"]
[Result "1-0"]
[ECO "D94"]
[WhiteElo "1953"]
[BlackElo "1716"]
[Annotator "TA"]
[PlyCount "133"]
[EventDate "2022.12.04"]
[EventType "blitz"]
[EventCountry "ROU"]
[SourceTitle "playchess.com"]
[Source "ChessBase"]
[SourceQuality "1"]
[TimeControl "180+2"]

{[%evp 16,132,47,26,33,20,45,38,77,75,79,62,87,7,225,42,114,63,450,447,437,442,427,145,170,116,173,43,42,-45,-40,-42,-42,-42,0,0,0,0,0,0,196,179,193,196,182,156,153,162,189,173,181,146,187,0,296,289,266,147,147,172,163,159,214,238,227,32,47,0,75,61,141,118,247,89,89,89,89,89,89,89,89,89,89,89,122,122,122,89,118,0,122,89,122,89,122,0,122,74,74,59,118,112,112,112,210,5,210,184,184,184,538,500,1212,983,6705,6593,29998,29999,29999]} 1. d4 {[%emt 0:00:01]} d5 {[%emt 0:00:02]} 2. c4 {[%emt 0:00:01]} c6 {[%emt 0:00:01]} 3. Nc3 {[%emt 0:00:02]} Nf6 {[%emt 0:00:01]} 4. e3 {[%emt 0:00:00]} g6 {[%emt 0:00:05]} 5. Nf3 {[%emt 0:00:03]} Bg7 {[%emt 0:00:01]} 6. Bd3 {[%emt 0:00:10]} O-O {[%emt 0:00:02]} 7. O-O {[%emt 0:00:03]} Nbd7 {[%emt 0:00:08]} 8. cxd5 {[%emt 0:00:12]} cxd5 {[%emt 0:00:04]} 9. Bd2 {[%emt 0:00:07]} (9. Qb3 $5 {[%cal Rc3d5]}) 9... Nb6 {[%emt 0:00:01] D94: Grünfeld: 4 Nf3 Bg7 5 e3.} 10. Rc1 {[%emt 0:00:03]} Be6 {[%emt 0:00:17] [#]} 11. Qb3 $146 {[%emt 0:00:11]} ({Predecessor:} 11. Qe2 Rc8 12. b3 a6 13. a4 Nbd7 14. Rc2 Ne4 15. Nxe4 dxe4 16. Bxe4 Bxb3 17. Rxc8 Qxc8 {½-½ (24) Andi,P (2230)-Halasz,C (2185) Hungary 1997}) 11... Qd7 {[%emt 0:00:14] White is slightly better.} 12. Ne5 {[%emt 0:00:03]} Qd8 {[%emt 0:00:10][%cal Of6e4]} 13. Nb5 {[%emt 0:00:08]} Nfd7 {[%emt 0:02:22]} 14. Nf3 {[%emt 0:00:19] White is much more active. The black rooks are badly placed.} (14. Nxd7 $16 Bxd7 15. Ba5 (15. Nc7 Rc8 $11) 15... Bxb5 16. Bxb5 (16. Qxb5 e5 $16)) 14... a6 $2 {[%emt 0:00:00]} (14... Nc4 $11 {and Black has nothing to worry.}) 15. Nc3 $2 {[%emt 0:00:04]} (15. Nc7 $18) 15... Rc8 {[%emt 0:00:00]} (15... Nb8 $14) 16. Ne2 {[%emt 0:00:10]} ({Better is} 16. Ng5 $16) 16... Nf6 $2 {[%emt 0:00:00][%mdl 8192]} (16... Nc4 $14) 17. Ba5 $18 {[%emt 0:00:08]} Rxc1 {[%emt 0:00:00]} 18. Rxc1 {[%emt 0:00:05]} Nfd7 {[%emt 0:00:00][%cal Bf6d7,Bd7c5,Bc5b3][%mdl 32]} 19. Nc3 $2 {[%emt 0:00:31]} (19. Nf4 $18 {has better winning chances.}) 19... Qc7 $16 {[%emt 0:00:00]} 20. Rc2 {[%emt 0:00:01]} (20. Ng5 $18) 20... Qd6 {[%emt 0:00:00]} (20... Qc6 $16) 21. Na4 {[%emt 0:00:11]} (21. Bb4 $18 Qb8 22. Bxe7) 21... Nxa4 $14 {[%emt 0:00:00]} 22. Bc7 {[%emt 0:00:11] [#] Inhibits Nab6.} (22. Qxa4 $14 Nb6 23. Qb4) 22... Ndc5 $1 $15 {[%emt 0:00:00]} 23. Bxd6 {[%emt 0:00:41]} Nxb3 {[%emt 0:00:00]} 24. Bxe7 {[%emt 0:00:09]} Re8 {[%emt 0:00:10] White must now prevent ...Nxd4.} 25. axb3 {[%emt 0:00:02]} Nxb2 {[%emt 0:00:01]} 26. Rxb2 {[%emt 0:00:04]} Rxe7 {[%emt 0:00:01]} 27. Rc2 {[%emt 0:00:02]} Bf5 $2 {[%emt 0:00:02]} (27... Bf6 $11) 28. Bxf5 $18 {[%emt 0:00:02]} gxf5 {[%emt 0:00:01][%mdl 4096] Endgame KRB-KRN} 29. Rc8+ {[%emt 0:00:02]} Bf8 {[%emt 0:00:01]} 30. Ne5 {[%emt 0:00:03]} Kg7 {[%emt 0:00:05]} 31. h4 {[%emt 0:00:02]} f6 {[%emt 0:00:04]} 32. Nd3 {[%emt 0:00:02]} Kf7 {[%emt 0:00:07]} 33. Nf4 {[%emt 0:00:02]} Rd7 {[%emt 0:00:03]} 34. Nd3 $2 {[%emt 0:00:03]} (34. g3 $18) 34... Bh6 $2 {[%emt 0:00:02][%mdl 8192]} (34... Re7 $1 $11 {and Black stays safe.}) 35. Nc5 {[%emt 0:00:02]} Re7 {[%emt 0:00:02]} 36. Rd8 {[%emt 0:00:01]} (36. g3 $18) 36... f4 {[%emt 0:00:02]} 37. exf4 {[%emt 0:00:05]} (37. Rxd5 $6 fxe3 38. fxe3 Bxe3+ 39. Kf1 h6 $11) 37... Bxf4 {[%emt 0:00:01][%cal Re7e1] [#]} 38. g3 $1 {[%emt 0:00:01]} (38. Rxd5 $2 Re1#) 38... Bc7 {[%emt 0:00:01]} (38... Bc1 $16 {is a better defense.} 39. Rxd5 Ba3) 39. Rxd5 {[%emt 0:00:02]} Bb6 {[%emt 0:00:09]} 40. Rh5 {[%emt 0:00:07]} ({White should play} 40. Kg2 $18) 40... Kg6 $14 {[%emt 0:00:00]} 41. Rd5 {[%emt 0:00:01]} (41. g4 $1 $14) 41... Bxc5 {[%emt 0:00:00]} (41... Kf7 $1 $11 {remains equal.}) 42. dxc5 $11 {[%emt 0:00:04] KR-KR} Rc7 {[%emt 0:00:00]} (42... Re1+ $14 43. Kh2 Rb1) 43. b4 {[%emt 0:00:01]} Kf7 {[%emt 0:00:01]} (43... b6 $16 {might work better.} 44. cxb6 Rc6 45. h5+ Kh6) 44. Rd6 $2 {[%emt 0:00:02]} (44. Kg2 $18) 44... a5 $16 {[%emt 0:00:03]} 45. bxa5 {[%emt 0:00:08] And now Rb6 would win.} Rxc5 {[%emt 0:00:01]} 46. Rb6 {[%emt 0:00:00]} Rxa5 {[%emt 0:00:02]} 47. Rxb7+ {[%emt 0:00:00]} Kg6 {[%emt 0:00:00]} 48. Kg2 {[%emt 0:00:00]} Ra3 {[%emt 0:00:01]} 49. Rb6 {[%emt 0:00:00]} Kf5 {[%emt 0:00:03]} 50. Rb5+ {[%emt 0:00:01]} Kg6 {[%emt 0:00:01]} 51. Kh3 {[%emt 0:00:02]} Rf3 {[%emt 0:00:02]} 52. Kg2 {[%emt 0:00:01]} Ra3 {[%emt 0:00:12]} 53. Rc5 {[%emt 0:00:08]} Rb3 {[%emt 0:00:00]} 54. Rc6 {[%emt 0:00:01]} Ra3 {[%emt 0:00:00]} 55. Rc5 {[%emt 0:00:01]} Rb3 $1 {[%emt 0:00:00]} 56. f3 {[%emt 0:00:02]} (56. g4 $142) 56... Rb2+ {[%emt 0:00:00]} 57. Kh3 {[%emt 0:00:01]} Rb3 {[%emt 0:00:00]} (57... h5 $1 $14) 58. Kg4 {[%emt 0:00:03] aiming for h5+.} Rb4+ {[%emt 0:00:00]} 59. f4 {[%emt 0:00:01] h5+ is the strong threat.} Rb3 {[%emt 0:00:00]} (59... Rb7 $16 {was called for.} 60. Rd5 Ra7) 60. Ra5 $2 {[%emt 0:00:02]} ({White must play} 60. h5+ $18 Kg7 61. Rc7+ Kg8 62. h6) 60... Rc3 $2 {[%emt 0:00:00]} (60... h5+ $1 $11 61. Kh3 (61. Rxh5 Rxg3+ 62. Kxg3 Kxh5 $11) 61... Rc3) 61. h5+ $18 {[%emt 0:00:02]} Kg7 {[%emt 0:00:00] [#]} 62. Ra7+ $1 {[%emt 0:00:02]} Kh6 $2 {[%emt 0:00:03]} (62... Kg8 63. h6 f5+ 64. Kh4 (64. Kxf5 Rxg3 65. Ra8+ Kf7 $16) 64... Rc5) 63. Rf7 {[%emt 0:00:01]} Rc6 {[%emt 0:00:03]} (63... f5+ $142 64. Rxf5 (64. Kxf5 Rxg3 65. Rd7 Rh3 $16) 64... Kg7) 64. Kh4 {[%emt 0:00:04] Strongly threatening g4.} Rd6 {[%emt 0:00:02]} 65. g4 {[%emt 0:00:01] White threatens g5+ and mate.} Rd1 {[%emt 0:00:09]} 66. g5+ {[%emt 0:00:01]} fxg5+ {[%emt 0:00:03]} 67. fxg5# {[%emt 0:00:01] Weighted Error Value: White=0.55/Black=0.62} 1-0

[Event "Romanian Team Blitz Women 2022"]
[Site "Sebes"]
[Date "2022.12.04"]
[Round "6.4"]
[White "Bulmaga, Irina"]
[Black "Sariteanu, Sabina"]
[Result "1-0"]
[ECO "B90"]
[WhiteElo "2426"]
[BlackElo "1752"]
[Annotator "TA"]
[PlyCount "115"]
[EventDate "2022.12.04"]
[EventType "blitz"]
[EventCountry "ROU"]
[SourceTitle "playchess.com"]
[Source "ChessBase"]
[SourceQuality "1"]
[TimeControl "180+2"]

{[%evp 11,115,28,31,31,33,33,33,33,37,29,36,33,29,27,85,82,79,16,29,38,29,45,95,0,0,-34,27,26,29,0,3,3,2,2,2,3,7,0,49,41,45,25,24,0,32,25,44,20,17,8,610,613,595,601,593,505,575,558,585,451,447,431,622,668,650,639,676,657,793,793,1366,1274,1201,1074,29963,9162,29957,29959,29967,29969,29967,29969,29986,29974,29973,29963,10740,8692,29963,29964,12849,9828,6423,2841,29983,29984,29985,29986,29986,29987,29994,29988,29988,29989,29994,29995]} 1. e4 {[%emt 0:00:01]} c5 {[%emt 0:00:02]} 2. Nf3 {[%emt 0:00:02]} d6 {[%emt 0:00:01]} 3. d4 {[%emt 0:00:00]} cxd4 {[%emt 0:00:01]} 4. Nxd4 {[%emt 0:00:02]} Nf6 {[%emt 0:00:01]} 5. Nc3 {[%emt 0:00:00]} a6 {[%emt 0:00:01]} 6. h3 {[%emt 0:00:02]} b5 {[%emt 0:00:05]} 7. g4 {[%emt 0:00:06] B90: Sicilian Najdorf: Unusual White 6th moves, 6 Be3 Ng4 and 6 Be3 e5.} h6 {[%emt 0:00:03]} 8. Bg2 {[%emt 0:00:03][%cal Oe4e5] Strongly threatening e5!} Bb7 {[%emt 0:00:18] Against e5} 9. O-O {[%emt 0:00:09] White is slightly better.} e5 {[%emt 0:00:11] Inhibits f4.} 10. Nf5 {[%emt 0:00:03]} g6 {[%emt 0:00:03] Against f4} 11. Ne3 {[%emt 0:00:02]} Nbd7 {[%emt 0:00:08]} 12. Ncd5 {[%emt 0:00:01] [#]} Nc5 $146 {[%emt 0:00:40]} (12... Nxd5 $11 13. Nxd5 h5) ({Predecessor:} 12... Nxd5 13. Nxd5 Be7 14. a4 bxa4 15. Rxa4 Bg5 16. f4 exf4 17. Rd4 Rc8 18. Nxf4 Qb6 {½-½ (38) Fabig,H (2334)-Timofeev,A (2367) ICCF email 2019}) 13. Nxf6+ $16 {[%emt 0:00:04]} (13. f3 Rc8 $11) 13... Qxf6 {[%emt 0:00:02]} 14. Nd5 {[%emt 0:00:03]} ({White should play} 14. f4 $16) 14... Bxd5 $11 {[%emt 0:00:17]} 15. Qxd5 {[%emt 0:00:02]} Rc8 {[%emt 0:00:06] Prevents Qc6+.} 16. f4 {[%emt 0:00:09]} (16. Be3 {simplifies} Qe6 17. Qd2 h5 18. g5) 16... Ne6 {[%emt 0:00:22]} (16... Qe6 $14) 17. fxe5 {[%emt 0:00:18]} (17. f5 $16 {Black must now prevent Qb7.} Nf4 18. Bxf4 exf4 19. c3 (19. Rxf4 Qxb2 20. Raf1 g5 $16)) 17... Qxe5 {[%emt 0:00:04]} 18. Qb7 {[%emt 0:00:24]} Qc5+ {[%emt 0:00:15]} (18... Rc7 $15 19. Qa8+ Ke7) 19. Kh1 {[%emt 0:00:01]} Be7 {[%emt 0:00:06]} 20. Be3 {[%emt 0:00:31]} Qc6 {[%emt 0:00:12]} 21. e5 {[%emt 0:00:09]} Qxb7 {[%emt 0:00:11]} 22. Bxb7 {[%emt 0:00:01]} Rxc2 {[%emt 0:00:02]} 23. Rac1 {[%emt 0:00:10]} Rxc1 {[%emt 0:00:04]} (23... Rxb2 24. Bc6+ (24. Bxa6 dxe5 25. Rc8+ Bd8 $15) (24. Rc8+ Bd8 $18) 24... Kf8 25. Bd5 $18) 24. Rxc1 {[%emt 0:00:01]} O-O {[%emt 0:00:06]} (24... dxe5 $11 {should be considered.} 25. Bxa6 Bf6) 25. exd6 $14 {[%emt 0:00:13]} Bxd6 {[%emt 0:00:01]} 26. Bxh6 {[%emt 0:00:02]} Rd8 {[%emt 0:00:07]} 27. Rd1 {[%emt 0:00:09]} a5 {[%emt 0:00:04]} (27... g5 $5 {[%cal Rg8h7]}) 28. Be3 {[%emt 0:00:05]} Kf8 {[%emt 0:00:08]} 29. Bc6 {[%emt 0:00:08]} b4 {[%emt 0:00:07]} 30. Bb6 {[%emt 0:00:04] A strong pair of Bishops.} Rc8 {[%emt 0:00:01][%mdl 8192] [#] This move loses the game for Black.} (30... Rb8 $11) 31. Rxd6 $18 {[%emt 0:00:01]} Ke7 {[%emt 0:00:02]} 32. Rd7+ {[%emt 0:00:03]} Kf6 {[%emt 0:00:01]} 33. Be4 {[%emt 0:00:12]} Rc1+ {[%emt 0:00:03]} 34. Kg2 {[%emt 0:00:03]} a4 {[%emt 0:00:01]} 35. Bd4+ {[%emt 0:00:03]} Nxd4 {[%emt 0:00:03]} 36. Rxd4 {[%emt 0:00:02][%mdl 4096] Endgame KRB-KR} b3 {[%emt 0:00:04]} (36... Ra1 $142 37. Rxb4 a3) 37. axb3 {[%emt 0:00:01]} axb3 {[%emt 0:00:03]} 38. Rb4 {[%emt 0:00:04]} Re1 {[%emt 0:00:02]} 39. Bd3 {[%emt 0:00:09] Prevents Re2+.} Re3 {[%emt 0:00:04]} 40. Rxb3 {[%emt 0:00:02]} Ke5 {[%emt 0:00:02]} 41. Bc4 {[%emt 0:00:03][%csl LRe3,LRf7]} Re4 {[%emt 0:00:03]} 42. Bxf7 {[%emt 0:00:02]} g5 {[%emt 0:00:02]} 43. Bg6 {[%emt 0:00:06]} (43. Rb5+ $142 Kf6 44. Rf5+ Kg7 45. Bd5 Re2+ 46. Kf3 Re1 47. Rxg5+ Kf6 48. Rf5+ Kg7 49. h4 Rf1+ 50. Kg3) 43... Rd4 {[%emt 0:00:01]} 44. Kf3 {[%emt 0:00:03]} Rf4+ {[%emt 0:00:02]} 45. Ke3 {[%emt 0:00:02]} Rf1 {[%emt 0:00:03]} 46. Rb5+ {[%emt 0:00:02]} Kf6 {[%emt 0:00:01]} 47. Bf5 {[%emt 0:00:03]} Re1+ {[%emt 0:00:02]} 48. Kf2 {[%emt 0:00:01]} Rh1 {[%emt 0:00:02]} 49. Kg2 {[%emt 0:00:01]} Rd1 {[%emt 0:00:01]} 50. b4 {[%emt 0:00:01][%cal Bb2b4,Bb4b5,Bb5b6][%mdl 32]} Rd2+ {[%emt 0:00:02]} 51. Kf3 {[%emt 0:00:02] [#] Ke3 would kill now.} Rh2 {[%emt 0:00:02]} 52. Rc5 {[%emt 0:00:03] White wants to mate with b5.} Rxh3+ {[%emt 0:00:02]} 53. Ke4 {[%emt 0:00:00] White mates.} Rb3 {[%emt 0:00:01]} 54. b5 {[%emt 0:00:01]} Rb4+ {[%emt 0:00:02]} 55. Kd5 {[%emt 0:00:01]} Rb1 {[%emt 0:00:02]} 56. Kc6 {[%emt 0:00:02]} Rd1 {[%emt 0:00:02]} 57. b6 {[%emt 0:00:01]} Rb1 {[%emt 0:00:02]} 58. Bxb1 {[%emt 0:00:02] Weighted Error Value: White=0.20 (precise) /Black=0.44} 1-0

[Event "Romanian Team Blitz Women 2022"]
[Site "Sebes"]
[Date "2022.12.04"]
[Round "6.5"]
[White "Chicarosie, Ioana-Bianca"]
[Black "Cosma, Elena-Luminita"]
[Result "0-1"]
[ECO "D02"]
[WhiteElo "1815"]
[BlackElo "2244"]
[Annotator "TA"]
[PlyCount "108"]
[EventDate "2022.12.04"]
[EventType "blitz"]
[EventCountry "ROU"]
[SourceTitle "playchess.com"]
[Source "ChessBase"]
[SourceQuality "1"]
[TimeControl "180+2"]

{[%evp 9,108,-7,0,0,27,8,14,7,35,12,19,8,13,12,27,15,27,31,38,33,30,28,31,12,15,15,25,15,29,10,22,4,4,0,6,-22,-27,-78,-20,-20,-20,-25,-31,-123,-137,-133,-116,-145,-128,-135,-93,-123,-132,-142,-142,-157,-144,-133,-77,-77,-84,-29972,-29973,-29974,-29974,-29974,-29975,-29975,-29976,-29976,-29977,-29977,-29978,-29979,-29980,-29980,-29981,-29981,-29982,-29982,-29983,-29984,-29985,-29984,-29984,-29984,-29985,-29986,-29987,-29987,-29988,-29988,-29988,-29988,-29989,-29991,-29988,-29988,-29989,-29991,-29991]} 1. d4 {[%emt 0:00:02]} d5 {[%emt 0:00:01]} 2. Nf3 {[%emt 0:00:01]} Nf6 {[%emt 0:00:01]} 3. Nbd2 {[%emt 0:00:05]} Bf5 {[%emt 0:00:08]} 4. g3 {[%emt 0:00:13]} h6 {[%emt 0:00:02]} 5. Bg2 {[%emt 0:00:01]} e6 {[%emt 0:00:02]} 6. O-O {[%emt 0:00:05] D02: 1 d4 d5 2 Nf3 sidelines, including 2...Nf6 3 g3 and 2...Nf6 3 Bf4.} c5 {[%emt 0:00:02]} 7. dxc5 {[%emt 0:00:19]} (7. c4 {simplifies} Nbd7 8. cxd5 exd5 9. dxc5 Bxc5 10. Nb3) 7... Bxc5 {[%emt 0:00:02]} 8. c4 {[%emt 0:00:04] The position is equal.} dxc4 {[%emt 0:00:35]} 9. Nxc4 {[%emt 0:00:15] Qxd8+ is the strong threat.} Nc6 {[%emt 0:00:45] [#]} 10. Nfe5 $146 {[%emt 0:00:21]} ({Predecessor:} 10. Qxd8+ Rxd8 11. Nfe5 Nxe5 12. Nxe5 Be4 13. a3 O-O 14. Bxe4 Nxe4 15. e3 Rd5 16. b4 Rxe5 {0-1 (28) Van der Wilt,N-Heemskerk,F (2005) Vlissingen 1997}) 10... Nxe5 {[%emt 0:00:12]} 11. Nxe5 {[%emt 0:00:05] Hoping for Qa4+.} Qxd1 {[%emt 0:00:02]} 12. Rxd1 {[%emt 0:00:01]} Be4 {[%emt 0:00:06]} 13. Bf4 {[%emt 0:00:32]} Bxg2 {[%emt 0:00:03]} 14. Kxg2 {[%emt 0:00:01]} O-O {[%emt 0:00:05]} 15. Rac1 {[%emt 0:00:03]} Rfc8 {[%emt 0:00:10]} 16. Nd7 {[%emt 0:00:10]} Be7 {[%emt 0:00:02]} 17. Nxf6+ {[%emt 0:00:08]} Bxf6 {[%emt 0:00:02]} 18. b3 {[%emt 0:00:02]} a6 {[%emt 0:00:14]} 19. a4 {[%emt 0:00:16]} b5 {[%emt 0:00:09]} 20. Rxc8+ {[%emt 0:00:11]} Rxc8 $11 {[%emt 0:00:02][%mdl 4096] Endgame KRB-KRB} 21. Rd6 {[%emt 0:00:03]} Rc3 {[%emt 0:00:27]} 22. axb5 {[%emt 0:00:23]} axb5 {[%emt 0:00:02]} 23. b4 {[%emt 0:00:05]} (23. Rd3 $11) 23... Rb3 {[%emt 0:00:12]} (23... Rc4 $17) 24. Bd2 $1 {[%emt 0:00:02]} Rb2 {[%emt 0:00:03]} 25. e3 {[%emt 0:00:08]} Be7 {[%emt 0:00:02]} 26. Rd7 {[%emt 0:00:05]} (26. Rd4 $1 $15) 26... Bxb4 $17 {[%emt 0:00:02] Black is more active.} 27. Bxb4 {[%emt 0:00:03]} Rxb4 {[%emt 0:00:02] KR-KR} 28. Rb7 {[%emt 0:00:00]} Rb2 {[%emt 0:00:01]} 29. Kf3 {[%emt 0:00:04]} g6 {[%emt 0:00:02]} 30. h4 {[%emt 0:00:04]} h5 {[%emt 0:00:01]} 31. Kg2 {[%emt 0:00:02]} Kg7 {[%emt 0:00:01]} 32. Kf3 {[%emt 0:00:00]} Kf6 {[%emt 0:00:03]} 33. Ke4 {[%emt 0:00:02] [#]} Rxf2 {[%emt 0:00:09]} (33... b4 $142 $1 34. Kf3 b3) 34. Rxb5 {[%emt 0:00:02]} Rf5 {[%emt 0:00:02]} 35. Rxf5+ {[%emt 0:00:03][%mdl 8192] This costs White the game.} (35. Rb8 $17) 35... gxf5+ {[%emt 0:00:03] KP-KP. Black mates.} 36. Kf4 {[%emt 0:00:01] [#]} e5+ $1 {[%emt 0:00:01]} 37. Kf3 {[%emt 0:00:02]} Kg6 {[%emt 0:00:02]} 38. Kg2 {[%emt 0:00:04]} f4 {[%emt 0:00:07]} 39. gxf4 {[%emt 0:00:03]} exf4 {[%emt 0:00:01]} 40. exf4 {[%emt 0:00:01] KPP-KPP} Kf5 {[%emt 0:00:01]} 41. Kg3 {[%emt 0:00:02]} Ke4 {[%emt 0:00:00]} 42. f5 {[%emt 0:00:04]} Kxf5 {[%emt 0:00:17] KPP-KP} 43. Kf3 f6 {[%emt 0:00:00]} 44. Kg3 {[%emt 0:00:04]} Ke4 {[%emt 0:00:00]} 45. Kg2 {[%emt 0:00:02]} Kf4 {[%emt 0:00:00]} 46. Kf2 {[%emt 0:00:01]} Kg4 {[%emt 0:00:00]} 47. Kg2 {[%emt 0:00:01]} Kxh4 {[%emt 0:00:00] KP-KP} 48. Kh2 {[%emt 0:00:01]} Kg4 {[%emt 0:00:00][%cal Bh4g4,Bg4f4,Bf4e3,Be3f3][%mdl 32]} 49. Kg2 {[%emt 0:00:00]} f5 {[%emt 0:00:00][%cal Bf6f5,Bf5f4][%mdl 32]} 50. Kf2 {[%emt 0:00:02]} Kf4 {[%emt 0:00:00]} 51. Kg2 {[%emt 0:00:01]} Ke3 {[%emt 0:00:00]} 52. Kf1 {[%emt 0:00:03]} Kf3 {[%emt 0:00:00]} 53. Kg1 {[%emt 0:00:01]} f4 {[%emt 0:00:00]} 54. Kf1 {[%emt 0:00:02]} h4 {[%emt 0:00:00] Weighted Error Value: White=0.21 (precise) /Black=0.08 (flawless)} 0-1

[Event "Romanian Team Blitz Women 2022"]
[Site "Sebes"]
[Date "2022.12.04"]
[Round "6.6"]
[White "Ciolacu, Alessia-Mihaela"]
[Black "Hoanca, Alexia-Ioana"]
[Result "1-0"]
[ECO "A70"]
[WhiteElo "2097"]
[BlackElo "1644"]
[Annotator "TA"]
[PlyCount "111"]
[EventDate "2022.12.04"]
[EventType "blitz"]
[EventCountry "ROU"]
[SourceTitle "playchess.com"]
[Source "ChessBase"]
[SourceQuality "1"]
[TimeControl "180+2"]

{[%evp 19,110,22,24,0,-10,-129,55,56,73,0,76,82,91,83,141,132,138,115,114,114,452,459,454,325,377,365,546,332,347,331,443,428,563,537,485,470,686,682,662,454,721,709,879,870,781,547,967,681,696,631,570,337,923,880,876,842,816,816,803,803,769,704,793,749,29976,29978,29976,29978,29979,29980,29981,29981,29984,29984,29991,29985,29988,29987,29989,29988,29990,29990,29992,12849,12850,12850,29992,12849,12850,12849,12850,12850,29999]} 1. d4 {[%emt 0:00:04]} Nf6 {[%emt 0:00:00]} 2. c4 {[%emt 0:00:02]} c5 {[%emt 0:00:02]} 3. d5 {[%emt 0:00:01]} e6 {[%emt 0:00:01]} 4. Nc3 {[%emt 0:00:03]} exd5 {[%emt 0:00:01]} 5. cxd5 {[%emt 0:00:01]} d6 {[%emt 0:00:01]} 6. Nf3 {[%emt 0:00:03]} g6 {[%emt 0:00:01]} 7. e4 {[%emt 0:00:03]} Bg7 {[%emt 0:00:01]} 8. h3 {[%emt 0:00:03]} O-O {[%emt 0:00:03]} 9. Bd3 {[%emt 0:00:02]} b5 {[%emt 0:00:01]} 10. Nxb5 {[%emt 0:00:51]} Re8 {[%emt 0:00:01][%csl LRd5,LRe4]} ({But not} 10... c4 11. Bxc4 Nxe4 12. O-O $16) 11. Nc3 {[%emt 0:00:46] A70: Modern Benoni: 6 e4 g6 7 Nf3.} Nxe4 {[%emt 0:00:04][%mdl 64]} 12. Bxe4 {[%emt 0:00:14]} (12. Nxe4 $11 {remains equal.} f5 13. Bg5) 12... f5 $2 {[%emt 0:00:01] [#]} (12... Bxc3+ $17 13. bxc3 Rxe4+ 14. Be3 Ba6) 13. O-O $1 $14 {[%emt 0:00:06] White is slightly better.} fxe4 {[%emt 0:00:14]} 14. Ng5 {[%emt 0:00:01] [#]} ({White should play} 14. Bg5 $16 Qb6 15. Re1) 14... Bf5 $146 {[%emt 0:01:04]} (14... e3 $1 $11 15. Ne6 Bxe6 16. dxe6 exf2+ 17. Rxf2 Nc6) ({Predecessor:} 14... e3 15. Nce4 exf2+ 16. Nxf2 h6 17. Ne6 Bxe6 18. dxe6 Nc6 19. Ng4 Nd4 20. Bxh6 Rxe6 {½-½ (35) Mamedyarov,S (2768)-Matlakov,M (2694) Doha 2016}) 15. Re1 $16 {[%emt 0:00:03]} Nd7 {[%emt 0:00:08]} 16. Ngxe4 {[%emt 0:00:02] Pair of Knights!} Ne5 {[%emt 0:00:21]} (16... Bxc3 $142 17. Nxc3 Qh4) 17. Bg5 $36 {[%emt 0:00:03][%mdl 2048] White is really pushing.} Qd7 {[%emt 0:00:26]} 18. Nf6+ {[%emt 0:00:06]} Bxf6 {[%emt 0:00:03]} 19. Bxf6 {[%emt 0:00:00]} Rf8 $2 {[%emt 0:00:09][%mdl 8192] This costs Black the game.} (19... Nd3 $16 20. Rxe8+ Rxe8) 20. Bxe5 $18 {[%emt 0:00:03]} dxe5 {[%emt 0:00:01]} 21. Rxe5 {[%emt 0:00:03] Strongly threatening d6.} Rfe8 {[%emt 0:00:07]} 22. Rxe8+ {[%emt 0:00:13]} Rxe8 {[%emt 0:00:01]} (22... Qxe8 {was necessary.} 23. Qd2 Qe5) 23. Qd2 {[%emt 0:00:03]} Qe7 {[%emt 0:00:22]} 24. d6 {[%emt 0:00:07]} Qe6 {[%emt 0:00:18]} 25. Rd1 {[%emt 0:00:07]} Rd8 {[%emt 0:00:02]} 26. Nd5 {[%emt 0:00:09][%cal Bc3d5,Bd5e7,Be7c6,Bc6e5][%mdl 32]} Kf7 {[%emt 0:00:08]} 27. Ne7 {[%emt 0:00:06]} ({Not} 27. Qh6 g5 28. Qh5+ Bg6 29. Qf3+ Qf5 $18) 27... c4 {[%emt 0:00:06]} (27... Rd7 $142 28. Qh6 Rxd6 29. Qxh7+ Kf8 30. Rxd6 Qxd6 31. Nxf5 gxf5 32. Qxf5+ Kg7) 28. Nc6 {[%emt 0:00:09][%csl LRa7,LRd8]} Rd7 {[%emt 0:00:03]} 29. Qf4 {[%emt 0:00:01]} Kg7 {[%emt 0:00:04]} (29... Kg8 $142 30. Ne7+ Kf7) 30. Qd4+ {[%emt 0:00:03]} Kg8 {[%emt 0:00:03]} 31. Ne5 {[%emt 0:00:01]} Rd8 {[%emt 0:00:02]} 32. Nxc4 {[%emt 0:00:05]} Qe8 {[%emt 0:00:03]} 33. Qf6 {[%emt 0:00:04]} Qf8 {[%emt 0:00:02]} 34. Qg5 {[%emt 0:00:03]} Be6 {[%emt 0:00:01]} 35. Qc5 {[%emt 0:00:07]} Bxc4 $2 {[%emt 0:00:02]} (35... Rc8 36. Qe5 Bxc4) 36. Qxc4+ {[%emt 0:00:01][%mdl 4096] Endgame KQR-KQR} Qf7 {[%emt 0:00:01]} 37. Qc6 {[%emt 0:00:04]} Qe6 {[%emt 0:00:02]} 38. Qc7 {[%emt 0:00:01]} Rd7 {[%emt 0:00:02]} 39. Qc8+ {[%emt 0:00:02]} Kg7 {[%emt 0:00:03]} 40. Qc3+ {[%emt 0:00:02]} Kf7 {[%emt 0:00:01]} 41. Qh8 {[%emt 0:00:02]} Qxd6 {[%emt 0:00:03]} 42. Rxd6 {[%emt 0:00:04]} Rxd6 {[%emt 0:00:00]} 43. Qxh7+ {[%emt 0:00:14] KQ-KR} Kf6 44. Qxa7 {[%emt 0:00:00]} Rd1+ {[%emt 0:00:01]} 45. Kh2 {[%emt 0:00:00]} Rd2 {[%emt 0:00:02]} 46. b4 {[%emt 0:00:00]} Rb2 {[%emt 0:00:02]} 47. Qa6+ {[%emt 0:00:00]} Kf5 {[%emt 0:00:01]} 48. b5 {[%emt 0:00:00]} g5 {[%emt 0:00:02]} 49. b6 {[%emt 0:00:00]} g4 {[%emt 0:00:02]} 50. hxg4+ {[%emt 0:00:00]} Kxg4 {[%emt 0:00:00]} 51. b7 {[%emt 0:00:00]} (51. Qc8+ $142 Kh5 52. Qh8+ Kg4 53. Qxb2 Kg5 54. b7 Kh6 55. b8=Q Kg6 56. Qd6+ Kh7 57. Qb7+ Kh8 58. Qf8#) 51... Rxf2 {[%emt 0:00:02]} 52. b8=R {[%emt 0:00:01] [#] White wants to mate with Qe6+.} Rf5 {[%emt 0:00:04]} 53. Rg8+ {[%emt 0:00:03]} (53. Qc4+ $142 Kg5 54. Qe6 Kf4 55. Qd6+ Re5 56. Rb5 Kg4 57. Rxe5 Kh4 58. Qd4#) 53... Kf4 {[%emt 0:00:00]} 54. Qc4+ {[%emt 0:00:03]} Ke3 {[%emt 0:00:02]} 55. Re8+ {[%emt 0:00:02]} Kf2 {[%emt 0:00:02]} 56. Qe2# {[%emt 0:00:02] Weighted Error Value: White=0.44/Black=0.92} 1-0